bitfinex/quotes_SOLUSD_20220128
["timestamp","ask_amount","ask_price","bid_price","bid_amount"]
[1643405003091,7.13779972,93.266,93.201,22.896]
[1643405003304,7.13779972,93.266,93.23,2.9046146]
[1643405003493,2.95669142,93.265,93.23,2.9046146]
[1643405004294,2.95669142,93.265,93.201,22.896]
[1643405004697,1.21416256,93.264,93.201,22.896]
[1643405005095,2.95669142,93.263,93.202,47.5362587]
[1643405008797,1.49199396,93.245,93.202,47.5362587]
[1643405009206,4.44868538,93.244,93.202,47.5362587]
[1643405009410,1.49199396,93.243,93.202,47.5362587]
[1643405009606,4.44868538,93.243,93.202,47.5362587]
[1643405010007,2.95669142,93.242,93.202,47.5362587]
[1643405010808,1.49199396,93.247,93.202,47.5362587]
[1643405011009,4.44868538,93.246,93.202,47.5362587]
[1643405011410,2.95669142,93.246,93.202,47.5362587]
[1643405011612,2.95669142,93.245,93.202,47.5362587]
[1643405012111,4.44868538,93.245,93.202,47.5362587]
[1643405012313,1.49199396,93.244,93.202,47.5362587]
[1643405012512,1.49199396,93.243,93.202,47.5362587]
[1643405012714,4.44868538,93.243,93.202,47.5362587]
[1643405013113,2.95669142,93.242,93.202,47.5362587]
[1643405014820,2.95669142,93.242,93.201,22.896]
[1643405015018,1.49199396,93.239,93.175,24.2464]
[1643405015217,1.49199396,93.234,93.175,24.2464]
[1643405015422,1.49199396,93.224,93.175,24.2464]
[1643405015620,1.49199396,93.221,93.175,24.2464]
[1643405015817,1.49199396,93.219,93.176,36.51028181]
[1643405016019,1.49199396,93.218,93.176,36.51028181]
[1643405016223,4.44868538,93.218,93.176,36.51028181]
[1643405016623,2.95669142,93.217,93.176,36.51028181]
[1643405022023,3.66546764,93.216,93.176,36.51028181]
[1643405022424,2.95669142,93.215,93.176,36.51028181]
[1643405022923,2.95669142,93.215,93.175,24.2464]
[1643405023126,2.95669142,93.215,93.169,23.9826]
[1643405023924,2.95669142,93.215,93.14,15.5]
[1643405024124,2.95669142,93.215,93.13,15.5]
[1643405024326,4.44868538,93.215,93.123,22.7439]
[1643405024528,1.49199396,93.214,93.123,22.7439]
[1643405024728,4.44868538,93.214,93.123,22.7439]
[1643405024929,2.95669142,93.213,93.129,42.1022301]
[1643405025129,1.49199396,93.207,93.129,42.1022301]
[1643405025529,2.95669142,93.206,93.129,42.1022301]
[1643405026229,2.95669142,93.206,93.143,39.96667365]
[1643405027030,2.95669142,93.206,93.158,48.55509557]
[1643405027429,2.95669142,93.206,93.124,22.6667]
[1643405028031,28.04645525,93.205,93.124,22.6667]
[1643405028429,2.95669142,93.204,93.136,47.1426296]
[1643405029040,2.95669142,93.204,93.123,22.7439]
[1643405029231,1.49199396,93.201,93.123,22.7439]
[1643405029631,28.04645525,93.205,93.123,22.7439]
[1643405030034,28.04645525,93.205,93.126,113.7]
[1643405030233,129.68489477,93.204,93.126,150.86707473]
[1643405030438,21.78489477,93.204,93.126,113.7]
[1643405030634,2.95669142,93.203,93.126,113.7]
[1643405030833,19.09034713,93.203,93.126,113.7]
[1643405031040,2.95669142,93.203,93.126,113.7]
[1643405031235,28.04645525,93.205,93.127,39.39157403]
[1643405031436,28.04645525,93.205,93.14,15.5]
[1643405031636,28.04645525,93.205,93.141,47.7618863]
[1643405032041,2.95669142,93.236,93.141,47.7618863]
[1643405032240,28.0430327,93.213,93.142,23.611]
[1643405032639,2.95669142,93.236,93.142,23.611]
[1643405032839,28.04143166,93.22,93.142,23.611]
[1643405033240,2.95669142,93.236,93.142,23.611]
[1643405033538,2.95669142,93.219,93.142,23.611]
[1643405034038,30.99846434,93.219,93.142,23.611]
[1643405034437,2.95669142,93.218,93.142,23.611]
[1643405039562,1.1927143,93.217,93.142,23.611]
[1643405039965,2.95669142,93.216,93.142,23.611]
[1643405040567,2.95669142,93.216,93.143,47.75606708]
[1643405043171,2.95669142,93.216,93.142,23.611]
[1643405045374,2.95669142,93.216,93.143,43.00094879]
[1643405045774,2.40669142,93.216,93.143,43.00094879]
[1643405046180,2.95669142,93.215,93.143,43.00094879]
[1643405046475,2.95669142,93.217,93.143,43.00094879]
[1643405047078,20.0225861,93.216,93.127,22.6868]
[1643405047475,4.15107417,93.215,93.127,22.6868]
[1643405047676,1.19438275,93.214,93.127,22.6868]
[1643405047877,4.15107417,93.214,93.127,22.6868]
[1643405048077,2.95669142,93.213,93.128,43.30733065]
[1643405048481,2.95669142,93.213,93.129,24.7329]
[1643405049282,1.19494479,93.212,93.129,24.7329]
[1643405049679,2.95669142,93.211,93.129,24.7329]
[1643405052499,0.00669142,93.211,93.129,24.7329]
[1643405052705,2.95669142,93.21,93.129,24.7329]
[1643405053199,0.00669142,93.21,93.129,24.7329]
[1643405053399,2.95669142,93.215,93.129,24.7329]
[1643405053604,28.04177292,93.219,93.13,15.5]
[1643405054625,30.99846434,93.219,93.13,15.5]
[1643405055929,2.9669487,93.228,93.13,15.5]
[1643405056131,2.9669487,93.231,93.13,15.5]
[1643405056330,2.9669487,93.244,93.13,15.5]
[1643405056728,2.9669487,93.245,93.13,15.5]
[1643405056929,1.19591739,93.248,93.13,15.5]
[1643405057130,1.19591739,93.248,93.13,209.24]
[1643405057328,18.82820335,93.277,93.131,0.25]
[1643405057329,2.9669487,93.259,93.131,0.25]
[1643405057628,2.9669487,93.26,93.162,39.54750952]
[1643405057828,2.9669487,93.262,93.17,15.5]
[1643405058229,18.82820335,93.26,93.17,15.5]
[1643405058431,1.19591739,93.259,93.17,15.5]
[1643405059035,2.9669487,93.265,93.17,15.5]
[1643405059232,2.9669487,93.271,93.17,15.5]
[1643405059431,2.9669487,93.269,93.17,15.5]
[1643405059832,1.19591739,93.268,93.17,15.5]
[1643405060234,2.9669487,93.264,93.17,15.5]
[1643405060631,18.82820335,93.267,93.17,15.5]
[1643405060832,18.82820335,93.267,93.17,27.36]
[1643405061837,18.82820335,93.267,93.17,15.5]
[1643405062638,21.78489477,93.267,93.17,15.5]
[1643405062840,1.19169938,93.266,93.17,15.5]
[1643405063039,2.9669487,93.263,93.163,49.074]
[1643405063240,24.8776,93.262,93.163,49.074]
[1643405063439,1.19169938,93.261,93.163,49.074]
[1643405063844,2.9669487,93.254,93.163,49.074]
[1643405064041,2.9669487,93.254,93.161,113.7]
[1643405064242,17.4760075,93.253,93.161,113.7]
[1643405064442,2.9669487,93.249,93.161,113.7]
[1643405064644,2.9669487,93.247,93.139,35.4590535]
[1643405064842,2.9669487,93.245,93.139,35.4590535]
[1643405065044,2.9669487,93.243,93.139,35.4590535]
[1643405065245,2.9669487,93.242,93.139,35.4590535]
[1643405065447,2.9669487,93.24,93.139,35.4590535]
[1643405065644,1.19169938,93.241,93.139,35.4590535]
[1643405065844,22.97659415,93.241,93.139,35.4590535]
[1643405066048,17.4760075,93.24,93.14,47.2334]
[1643405066244,18.66770688,93.24,93.14,47.2334]
[1643405066447,22.97659415,93.239,93.14,47.2334]
[1643405066843,22.97659415,93.238,93.14,47.2334]
[1643405067047,1.19169938,93.237,93.14,47.2334]
[1643405067245,18.66770688,93.237,93.14,47.2334]
[1643405067449,22.97659415,93.236,93.14,47.2334]
[1643405067647,1.19169938,93.235,93.14,47.2334]
[1643405067845,24.0486,93.234,93.14,47.2334]
[1643405068047,42.87680335,93.234,93.14,47.2334]
[1643405068248,27.00529142,93.234,93.14,47.2334]
[1643405068449,22.97659415,93.233,93.14,47.2334]
[1643405068847,22.97659415,93.233,93.126,113.7]
[1643405068848,22.97659415,93.232,93.126,113.7]
[1643405069062,1.19169938,93.231,93.126,113.7]
[1643405069253,22.97659415,93.231,93.126,113.7]
[1643405069452,21.78489477,93.23,93.126,113.7]
[1643405069653,1.19169938,93.229,93.126,113.7]
[1643405069853,18.66770688,93.229,93.126,113.7]
[1643405070054,22.97659415,93.228,93.126,113.7]
[1643405070266,22.97659415,93.228,93.127,24.4716]
[1643405070455,21.78489477,93.227,93.127,24.4716]
[1643405070659,22.97741814,93.227,93.127,24.4716]
[1643405070858,21.78489477,93.226,93.127,24.4716]
[1643405071058,22.97741814,93.226,93.127,24.4716]
[1643405071260,21.78489477,93.225,93.127,24.4716]
[1643405071460,21.78489477,93.225,93.128,36.75546206]
[1643405071661,21.78489477,93.224,93.128,36.75546206]
[1643405072062,15.5,93.24,93.128,36.75546206]
[1643405072063,41.5145075,93.223,93.128,36.75546206]
[1643405072360,21.78489477,93.222,93.128,36.75546206]
[1643405072759,17.4760075,93.221,93.128,36.75546206]
[1643405072959,17.4760075,93.221,93.129,23.5664]
[1643405073161,21.78489477,93.22,93.129,23.5664]
[1643405073561,17.4760075,93.219,93.129,23.5664]
[1643405073961,24.0385,93.223,93.09,129.2]
[1643405073962,21.78489477,93.218,93.09,129.2]
[1643405074263,15.71215561,93.217,93.095,47.9879]
[1643405074463,17.4760075,93.217,93.096,40.51183291]
[1643405074661,47.57916888,93.216,93.096,40.51183291]
[1643405074865,1.19287411,93.215,93.096,40.51183291]
[1643405075064,22.97776888,93.215,93.09,113.7]
[1643405075262,2.9669487,93.201,93.09,113.7]
[1643405075664,1.19287411,93.213,93.09,113.7]
[1643405075863,1.19287411,93.215,93.09,113.7]
[1643405076164,107.9,93.208,93.091,39.69947036]
[1643405076562,107.9,93.206,93.091,39.69947036]
[1643405076963,107.9,93.206,93.09,113.7]
[1643405076964,20.25813951,93.205,93.09,113.7]
[1643405077165,109.09287411,93.204,93.09,113.7]
[1643405077365,1.19287411,93.203,93.09,113.7]
[1643405077567,107.9,93.202,93.048,113.7]
[1643405077767,1.19287411,93.201,93.048,113.7]
[1643405077967,1.19287411,93.201,93.088,113.7]
[1643405078171,23.1104,93.207,93.089,82.84264097]
[1643405078770,2.95669142,93.206,93.089,82.84264097]
[1643405079769,1.14941983,93.205,93.089,82.84264097]
[1643405080173,2.95669142,93.204,93.089,82.84264097]
[1643405080870,17.35609386,93.203,93.089,82.84264097]
[1643405081072,1.14931104,93.202,93.089,82.84264097]
[1643405081271,4.10600246,93.202,93.089,82.84264097]
[1643405081574,19.16347424,93.201,93.089,82.84264097]
[1643405081771,20.31278528,93.201,93.089,82.84264097]
[1643405081974,23.1104,93.207,93.089,82.84264097]
[1643405082671,22.94887325,93.206,93.089,82.84264097]
[1643405083171,22.94887325,93.205,93.089,82.84264097]
[1643405083575,22.94887325,93.204,93.089,82.84264097]
[1643405083984,22.94887325,93.203,93.089,82.84264097]
[1643405084373,22.94887325,93.202,93.089,82.84264097]
[1643405084776,22.94887325,93.201,93.089,82.84264097]
[1643405085171,23.1104,93.207,93.089,82.84264097]
[1643405086075,18.05851977,93.206,93.089,82.84264097]
[1643405089410,2.95669142,93.205,93.089,82.84264097]
[1643405089612,31.01399435,93.205,93.089,82.84264097]
[1643405089810,18.05851977,93.204,93.089,82.84264097]
[1643405090008,21.01521119,93.204,93.089,82.84264097]
[1643405090210,2.95669142,93.203,93.089,82.84264097]
[1643405090614,18.05851977,93.202,93.089,82.84264097]
[1643405090914,2.95669142,93.201,93.089,82.84264097]
[1643405094414,2.95669142,93.201,93.1,15.5]
[1643405094613,2.95669142,93.201,93.101,23.162]
[1643405097819,0.00669142,93.201,93.101,36.202]
[1643405098018,0.00669142,93.219,93.101,36.202]
[1643405098218,28.04126957,93.257,93.123,113.7]
[1643405098520,2.95669142,93.246,93.13,15.5]
[1643405101619,0.00669142,93.246,93.13,15.5]
[1643405101820,28.04126957,93.257,93.131,3.20669142]
[1643405102021,53.77734227,93.273,93.131,13.83669142]
[1643405102925,53.77734227,93.273,93.14,199.74]
[1643405103123,2.95669142,93.298,93.15,15.5]
[1643405103323,2.95669142,93.298,93.16,193.74]
[1643405103523,2.95669142,93.298,93.17,15.5]
[1643405103724,2.95669142,93.298,93.171,23.2348]
[1643405104932,24.4948,93.297,93.171,23.2348]
[1643405105127,33.15089991,93.297,93.171,23.2348]
[1643405105328,2.95669142,93.296,93.171,23.2348]
[1643405105531,11.61279133,93.296,93.171,23.2348]
[1643405105730,2.95669142,93.296,93.171,23.2348]
[1643405105928,2.95669142,93.295,93.171,23.2348]
[1643405106129,11.61279133,93.295,93.171,23.2348]
[1643405106347,2.95669142,93.295,93.171,23.2348]
[1643405106558,11.61279133,93.294,93.171,23.2348]
[1643405106955,2.95669142,93.293,93.171,23.2348]
[1643405108168,13.03669142,93.293,93.171,23.2348]
[1643405108359,6.19864746,93.292,93.171,23.2348]
[1643405108663,9.15533888,93.292,93.171,23.2348]
[1643405108861,2.95669142,93.291,93.161,72.21815118]
[1643405109059,48.4756,93.29,93.161,72.21815118]
[1643405109260,54.67424746,93.29,93.161,72.21815118]
[1643405109458,2.95669142,93.289,93.161,72.21815118]
[1643405109959,6.19864746,93.288,93.161,72.21815118]
[1643405110362,2.95669142,93.287,93.161,72.21815118]
[1643405111164,6.19864746,93.286,93.161,72.21815118]
[1643405111661,2.95669142,93.285,93.161,72.21815118]
[1643405112061,2.95669142,93.285,93.162,24.9916]
[1643405112262,2.95669142,93.285,93.162,38.2416]
[1643405112464,2.95669142,93.285,93.17,15.5]
[1643405112863,6.19864746,93.284,93.17,15.5]
[1643405113264,2.95669142,93.283,93.17,15.5]
[1643405113864,6.19864746,93.282,93.17,15.5]
[1643405114264,2.95669142,93.281,93.17,15.5]
[1643405114966,6.19864746,93.28,93.17,15.5]
[1643405115366,2.95669142,93.279,93.162,24.9916]
[1643405115965,6.19864746,93.278,93.162,24.9916]
[1643405116367,2.95669142,93.277,93.162,24.9916]
[1643405117065,6.19864746,93.276,93.162,24.9916]
[1643405117266,6.19864746,93.276,93.161,48.75855118]
[1643405117466,6.19864746,93.276,93.08,189.6]
[1643405117467,2.95669142,93.275,93.12,15.5]
[1643405118369,6.19864746,93.274,93.125,85.03432068]
[1643405118871,27.74819142,93.273,93.125,85.03432068]
[1643405119269,2.95669142,93.272,93.125,85.03432068]
[1643405119471,9.15533888,93.272,93.125,85.03432068]
[1643405119675,107.9,93.271,93.125,85.03432068]
[1643405119872,110.85669142,93.271,93.125,85.03432068]
[1643405120074,2.95669142,93.27,93.125,85.03432068]
[1643405120670,6.19864746,93.269,93.125,85.03432068]
[1643405121072,2.95669142,93.268,93.125,85.03432068]
[1643405121672,6.19864746,93.267,93.125,85.03432068]
[1643405121973,110.85669142,93.266,93.125,85.03432068]
[1643405122374,2.95669142,93.265,93.125,85.03432068]
[1643405122574,107.9,93.264,93.125,85.03432068]
[1643405122982,2.95669142,93.263,93.125,85.03432068]
[1643405123179,9.15533888,93.263,93.125,85.03432068]
[1643405123379,2.95669142,93.263,93.125,85.03432068]
[1643405123583,2.95669142,93.262,93.125,85.03432068]
[1643405123781,9.15533888,93.262,93.125,85.03432068]
[1643405123983,107.9,93.261,93.125,85.03432068]
[1643405124181,110.85669142,93.261,93.125,85.03432068]
[1643405124381,107.9,93.259,93.125,85.03432068]
[1643405124682,2.95669142,93.258,93.125,85.03432068]
[1643405124881,9.15533888,93.258,93.125,85.03432068]
[1643405125081,2.95669142,93.258,93.125,85.03432068]
[1643405125308,2.95669142,93.257,93.125,85.03432068]
[1643405125485,24.915,93.256,93.125,85.03432068]
[1643405125884,2.95669142,93.255,93.125,85.03432068]
[1643405126082,9.15533888,93.255,93.125,85.03432068]
[1643405126286,2.95669142,93.255,93.125,85.03432068]
[1643405126592,9.15533888,93.254,93.125,85.03432068]
[1643405126987,2.95669142,93.253,93.125,85.03432068]
[1643405127186,9.15533888,93.253,93.125,85.03432068]
[1643405127384,2.95669142,93.253,93.125,85.03432068]
[1643405127585,2.95669142,93.252,93.125,85.03432068]
[1643405127788,9.15533888,93.252,93.125,85.03432068]
[1643405127985,2.95669142,93.252,93.125,85.03432068]
[1643405128185,9.15533888,93.251,93.125,85.03432068]
[1643405128585,2.95669142,93.25,93.125,85.03432068]
[1643405128886,9.15533888,93.25,93.125,85.03432068]
[1643405129089,66.34117235,93.247,93.125,85.03432068]
[1643405129286,24.3629,93.246,93.125,85.03432068]
[1643405129491,27.31959142,93.246,93.125,85.03432068]
[1643405129887,9.15533888,93.245,93.125,85.03432068]
[1643405130186,2.95669142,93.244,93.125,85.03432068]
[1643405130587,9.15533888,93.244,93.125,85.03432068]
[1643405130789,2.95669142,93.244,93.125,85.03432068]
[1643405130990,9.15533888,93.243,93.125,85.03432068]
[1643405131394,110.85669142,93.242,93.125,85.03432068]
[1643405131791,9.15533888,93.241,93.125,85.03432068]
[1643405132292,2.95669142,93.24,93.125,85.03432068]
[1643405132822,9.15533888,93.24,93.125,85.03432068]
[1643405133025,2.95669142,93.24,93.125,85.03432068]
[1643405133226,9.15533888,93.239,93.125,85.03432068]
[1643405133623,2.95669142,93.238,93.125,85.03432068]
[1643405133825,9.15533888,93.238,93.125,85.03432068]
[1643405134025,2.95669142,93.238,93.125,85.03432068]
[1643405134226,31.0057807,93.237,93.125,85.03432068]
[1643405134427,37.20442816,93.237,93.125,85.03432068]
[1643405134628,2.95669142,93.236,93.125,85.03432068]
[1643405134826,9.15533888,93.236,93.125,85.03432068]
[1643405135327,2.95669142,93.235,93.125,85.03432068]
[1643405135534,9.15533888,93.235,93.125,85.03432068]
[1643405135728,2.95669142,93.235,93.125,85.03432068]
[1643405135929,9.15533888,93.234,93.125,85.03432068]
[1643405136128,24.619,93.233,93.125,85.03432068]
[1643405136330,27.57569142,93.233,93.125,85.03432068]
[1643405136532,9.15533888,93.232,93.125,85.03432068]
[1643405136730,107.9,93.231,93.125,46.8093]
[1643405136932,2.95669142,93.231,93.084,22.6182]
[1643405137140,9.15533888,93.23,93.084,22.6182]
[1643405137335,9.15533888,93.23,93.085,46.5033]
[1643405137532,2.95669142,93.229,93.085,46.5033]
[1643405137733,9.15533888,93.229,93.124,43.52777506]
[1643405137939,9.15533888,93.229,93.124,66.51657506]
[1643405138136,2.95669142,93.228,93.124,66.51657506]
[1643405138339,9.15533888,93.228,93.085,23.4591]
[1643405138533,2.95669142,93.228,93.086,22.9888]
[1643405138735,2.95669142,93.227,93.086,22.9888]
[1643405138933,9.15533888,93.227,93.086,22.9888]
[1643405139135,2.95669142,93.227,93.086,22.9888]
[1643405139335,9.15533888,93.226,93.124,38.66745815]
[1643405139734,2.95669142,93.225,93.124,38.66745815]
[1643405139935,9.15533888,93.225,93.124,38.66745815]
[1643405140135,2.95669142,93.225,93.124,38.66745815]
[1643405140336,2.95669142,93.224,93.125,23.327]
[1643405140535,9.15533888,93.224,93.125,23.327]
[1643405140741,2.95669142,93.224,93.125,23.327]
[1643405140937,2.95669142,93.223,93.125,23.327]
[1643405141136,9.15533888,93.223,93.125,23.327]
[1643405141337,2.95669142,93.223,93.125,23.327]
[1643405141538,9.15533888,93.222,93.125,23.327]
[1643405141939,2.95669142,93.221,93.125,23.327]
[1643405142139,9.15533888,93.221,93.124,38.66745815]
[1643405142440,24.619,93.233,93.124,38.66745815]
[1643405142441,3.02891364,93.22,93.124,38.66745815]
[1643405142642,9.2275611,93.22,93.124,38.66745815]
[1643405142839,2.95669142,93.219,93.124,38.66745815]
[1643405143041,3.02891364,93.219,93.124,38.66745815]
[1643405143244,6.19864746,93.218,93.124,38.66745815]
[1643405143439,9.15533888,93.218,93.125,22.645]
[1643405143641,2.95669142,93.217,93.125,22.645]
[1643405143939,9.15533888,93.217,93.125,22.645]
[1643405144141,9.15533888,93.217,93.126,22.5273]
[1643405144341,2.95669142,93.216,93.126,22.5273]
[1643405144643,2.45669142,93.216,93.126,22.5273]
[1643405144841,24.619,93.233,93.126,22.5273]
[1643405145140,6.19864746,93.218,93.126,22.5273]
[1643405145641,2.95669142,93.217,93.126,22.5273]
[1643405146245,9.15533888,93.217,93.126,22.5273]
[1643405146740,2.95669142,93.216,93.126,22.5273]
[1643405147341,6.19864746,93.215,93.126,22.5273]
[1643405147742,2.95669142,93.214,93.126,22.5273]
[1643405148843,6.19864746,93.213,93.126,22.5273]
[1643405149246,2.95669142,93.212,93.126,22.5273]
[1643405149844,6.19864746,93.211,93.126,22.5273]
[1643405150342,2.95669142,93.21,93.126,22.5273]
[1643405150945,6.19864746,93.209,93.126,22.5273]
[1643405151343,2.95669142,93.208,93.126,22.5273]
[1643405151946,6.19864746,93.207,93.126,22.5273]
[1643405152345,2.95669142,93.206,93.126,22.5273]
[1643405152946,6.19864746,93.205,93.126,22.5273]
[1643405153349,2.95669142,93.204,93.126,22.5273]
[1643405154049,6.19864746,93.203,93.126,22.5273]
[1643405154450,2.95669142,93.202,93.126,22.5273]
[1643405155150,6.19864746,93.201,93.126,22.5273]
[1643405160184,5.19864746,93.201,93.126,22.5273]
[1643405160585,0.00864746,93.201,93.126,22.5273]
[1643405161985,0.00864746,93.201,93.085,47.8472]
[1643405162983,0.00864746,93.201,93.086,39.48668398]
[1643405168090,0.00864746,93.201,93.105,113.7]
[1643405168290,0.00864746,93.201,93.106,40.05143851]
[1643405168891,0.00864746,93.201,93.106,63.25793851]
[1643405169091,0.00864746,93.201,93.106,23.2065]
[1643405170094,0.00864746,93.201,93.107,41.52462013]
[1643405170994,0.00864746,93.201,93.107,51.91462013]
[1643405172996,0.00864746,93.201,93.107,41.52462013]
[1643405177405,1.08574297,93.215,93.107,41.52462013]
[1643405184916,1.08574297,93.217,93.107,41.52462013]
[1643405185923,2.95669142,93.216,93.107,41.52462013]
[1643405186119,1.08574297,93.215,93.107,41.52462013]
[1643405186520,2.95669142,93.214,93.107,41.52462013]
[1643405186722,1.08574297,93.213,93.107,41.52462013]
[1643405187023,1.75630126,93.212,93.107,41.52462013]
[1643405187225,1.08574297,93.211,93.107,41.52462013]
[1643405187624,2.95669142,93.21,93.107,41.52462013]
[1643405188023,4.04243439,93.209,93.107,41.52462013]
[1643405188225,1.08574297,93.208,93.107,41.52462013]
[1643405188528,15.9645,93.218,93.107,41.52462013]
[1643405188925,1.08604422,93.217,93.107,41.52462013]
[1643405189325,4.04273564,93.217,93.107,41.52462013]
[1643405189529,4.04273564,93.216,93.107,41.52462013]
[1643405189928,1.75630126,93.215,93.107,41.52462013]
[1643405190131,1.08604422,93.214,93.107,41.52462013]
[1643405190531,2.95669142,93.213,93.107,41.52462013]
[1643405190833,1.08604422,93.212,93.107,41.52462013]
[1643405191232,2.95669142,93.211,93.107,41.52462013]
[1643405191432,1.08604422,93.21,93.107,41.52462013]
[1643405191832,2.95669142,93.209,93.107,41.52462013]
[1643405192033,1.08604422,93.208,93.107,41.52462013]
[1643405192433,1.75630126,93.207,93.107,41.52462013]
[1643405193451,15.9645,93.218,93.107,41.52462013]
[1643405193849,1.08573633,93.217,93.107,41.52462013]
[1643405195349,4.04242775,93.217,93.107,41.52462013]
[1643405195549,1.08573633,93.216,93.107,41.52462013]
[1643405197558,4.04242775,93.216,93.107,41.52462013]
[1643405197954,1.08573633,93.215,93.107,41.52462013]
[1643405198357,2.95669142,93.214,93.107,41.52462013]
[1643405198556,1.08573633,93.213,93.107,41.52462013]
[1643405198757,4.04242775,93.213,93.107,41.52462013]
[1643405198956,4.04242775,93.212,93.107,41.52462013]
[1643405199155,2.95669142,93.212,93.107,41.52462013]
[1643405199354,4.04270863,93.211,93.107,41.52462013]
[1643405199556,2.95669142,93.211,93.107,41.52462013]
[1643405199756,4.04302828,93.21,93.107,41.52462013]
[1643405200159,1.75630126,93.209,93.107,41.52462013]
[1643405200359,4.0431255,93.209,93.107,41.52462013]
[1643405200558,1.08643408,93.208,93.107,41.52462013]
[1643405200758,4.0431255,93.208,93.107,41.52462013]
[1643405200960,2.84273534,93.207,93.107,41.52462013]
[1643405201159,1.08643408,93.206,93.107,41.52462013]
[1643405201359,4.0431255,93.206,93.107,41.52462013]
[1643405201560,0.5559111,93.205,93.107,41.52462013]
[1643405201759,1.75630126,93.205,93.107,41.52462013]
[1643405202759,1.08673131,93.204,93.107,41.52462013]
[1643405203164,2.95669142,93.203,93.107,41.52462013]
[1643405203560,2.95669142,93.203,93.106,23.2065]
[1643405203760,1.08679337,93.202,93.106,23.2065]
[1643405204159,2.95669142,93.201,93.106,23.2065]
[1643405204561,22.6634,93.217,93.107,35.20720177]
[1643405205162,22.6634,93.217,93.106,23.2065]
[1643405205369,22.6634,93.217,93.105,113.7]
[1643405205570,5.61831056,93.216,93.105,113.7]
[1643405205762,26.74039332,93.217,93.201,75.0]
[1643405205763,39.25,93.217,93.201,75.0]
[1643405205966,5.0,107.47,93.203,75.0]
[1643405205967,0.1,93.339,93.203,75.0]
[1643405206163,0.00439772,93.315,93.23,36.48543407]
[1643405206368,0.00439772,93.315,93.27,193.74]
[1643405206369,0.00473455,93.307,93.27,193.74]
[1643405206567,0.1,93.355,93.28,209.24]
[1643405206863,0.1,93.355,93.301,47.00555636]
[1643405207167,7.45897654,93.5,93.33,193.74]
[1643405207368,16.0786,93.465,93.34,15.5]
[1643405207571,16.0786,93.465,93.34,209.24]
[1643405207763,0.046244,93.383,93.34,15.5]
[1643405208569,0.046244,93.383,93.283,22.7552]
[1643405208770,0.046244,93.383,93.266,49.7449]
[1643405209572,0.046244,93.383,93.267,42.03308054]
[1643405209969,0.046244,93.383,93.266,49.7449]
[1643405210174,0.046244,93.383,93.266,24.9314]
[1643405210770,0.046244,93.383,93.267,46.7616]
[1643405210972,0.046244,93.383,93.281,41.0233702]
[1643405212309,2.95267032,93.382,93.281,41.0233702]
[1643405220220,2.95267032,93.382,93.281,40.0233702]
[1643405222226,2.95267032,93.382,93.281,39.5233702]
[1643405229032,2.95267032,93.382,93.267,46.7616]
[1643405229232,2.95267032,93.382,93.24,15.5]
[1643405229432,2.95267032,93.382,93.22,15.5]
[1643405230034,2.95267032,93.382,93.221,35.59037478]
[1643405230232,69.4328,93.381,93.221,35.59037478]
[1643405230837,2.95267032,93.38,93.221,35.59037478]
[1643405231934,56.883043,93.368,93.221,35.59037478]
[1643405232135,22.5055,93.367,93.221,35.59037478]
[1643405232336,22.5055,93.367,93.22,15.5]
[1643405232537,2.95267032,93.366,93.217,47.9335]
[1643405233235,2.95267032,93.366,93.218,39.03679805]
[1643405234441,2.95267032,93.366,93.251,113.7]
[1643405238670,110.85267032,93.366,93.251,113.7]
[1643405238870,2.95267032,93.366,93.251,113.7]
[1643405239070,22.5055,93.367,93.251,113.7]
[1643405239368,2.95267032,93.366,93.251,113.7]
[1643405241072,110.85267032,93.366,93.251,113.7]
[1643405242077,2.95267032,93.366,93.251,113.7]
[1643405247684,2.95267032,93.366,93.251,127.12]
[1643405248286,2.95267032,93.366,93.252,0.25]
[1643405248487,56.883043,93.368,93.252,0.25]
[1643405248686,56.883043,93.368,93.26,193.74]
[1643405248893,56.883043,93.368,93.27,15.5]
[1643405249114,56.883043,93.368,93.27,28.66]
[1643405249888,16.2972,93.395,93.27,28.66]
[1643405250095,16.2972,93.395,93.271,23.936]
[1643405250288,16.2972,93.395,93.272,107.9]
[1643405250690,16.2972,93.395,93.285,113.7]
[1643405250889,16.2972,93.395,93.286,39.61003289]
[1643405257292,16.2972,93.395,93.29,15.5]
[1643405259897,16.2972,93.395,93.291,107.9]
[1643405260097,16.2972,93.395,93.29,15.5]